fUST/lending_fUST_20260105
["ID","MTS","AMOUNT","RATE_DAILY","PERIOD"]
[400467708,1767597231062,157.09,8.399e-05,2]
[400467709,1767597231471,188.51,8.734e-05,2]
[400467710,1767597231884,219.92,9.07e-05,2]
[400467711,1767597240416,4240.13452259,9.234e-05,2]
[400467712,1767597240444,759.86547741,9.234e-05,2]
[400467713,1767597263570,5000.0,9.234e-05,2]
[400467714,1767597286269,4240.14452259,9.234e-05,2]
[400467715,1767597301492,169.54,8.753e-05,2]
[400467716,1767597301907,193.76,9.078e-05,2]
[400467720,1767597372109,156.77,9.052e-05,2]
[400467721,1767597481211,5000.0,9.19e-05,2]
[400467723,1767597575839,158.41,9.37e-05,2]
[400467726,1767597811369,-2000.0,0.00010589,2]
[400467727,1767597923518,300.0,0.00030137,120]
[400467783,1767598118055,8263.00168774,7.3e-05,2]
[400467804,1767598231819,-614.35401849,0.00010378,2]
[400467938,1767598245018,-4385.64598151,0.00010378,2]
[400467939,1767598245029,-1102.6374254,0.00011874,2]
[400467940,1767598245039,-277.01881885,0.00011908,2]
[400467941,1767598245051,-1200.0,0.00012002,2]
[400467942,1767598245061,-300.0,0.00012003,2]
[400467943,1767598245070,-300.0,0.00012003,2]
[400467944,1767598245080,-300.0,0.00012003,2]
[400467945,1767598245089,-300.0,0.00012003,2]
[400467946,1767598245098,-296.56478859,0.00012003,2]
[400467947,1767598245108,-500.0,0.00012003,2]
[400467948,1767598245117,-500.0,0.00012003,2]
[400467949,1767598245127,-500.0,0.00012003,2]
[400467950,1767598245137,-500.0,0.00012003,2]
[400467951,1767598245147,-500.0,0.00012003,2]
[400467952,1767598245157,-500.09931814,0.00012003,2]
[400467953,1767598245166,-500.0,0.00012003,2]
[400467954,1767598245176,-500.0,0.00012003,2]
[400467955,1767598245185,-500.0,0.00012003,2]
[400467956,1767598245195,-500.0,0.00012003,2]
[400467957,1767598245205,-500.0,0.00012003,2]
[400467958,1767598245215,-500.0,0.00012003,2]
[400467959,1767598245225,-500.0,0.00012003,2]
[400467960,1767598245235,-500.0,0.00012003,2]
[400467961,1767598245245,-500.0,0.00012003,2]
[400467962,1767598245255,-500.0,0.00012003,2]
[400467963,1767598245264,-500.0,0.00012003,2]
[400467964,1767598245273,-224.92953668,0.00012003,2]
[400467965,1767598245287,-500.0,0.00012003,2]
[400467966,1767598245303,-389.46897594,0.00012003,2]
[400467967,1767598245312,-444.63515489,0.00012003,2]
[400467988,1767598615466,170.9238902,5.918e-05,2]
[400467989,1767598754173,3000.0,0.0003013,120]
[400467990,1767598824723,600.0,0.0003013,120]
[400467991,1767598833882,600.0,0.0003013,120]
[400467992,1767598849859,600.0,0.0003013,120]
[400467993,1767598858473,600.0,0.0003013,120]
[400467995,1767599387750,161.54,9.419e-05,2]
[400468080,1767599438140,-500.0,0.00011598,2]
[400468081,1767599438153,-500.0,0.00011598,2]
[400468082,1767599438163,-209.94099733,0.00011598,2]
[400468083,1767599438172,-500.0,0.00011598,2]
[400468084,1767599438182,-500.0,0.00011598,2]
[400468085,1767599438195,-500.0,0.00011598,2]
[400468086,1767599438366,-359.04535634,0.00011598,2]
[400468135,1767599446354,-608.11491716,0.00010047,2]
[400468142,1767599447455,-4391.88508284,0.00010047,2]
[400468143,1767599447464,-140.95464366,0.00011598,2]
[400468144,1767599447474,-500.0,0.00011598,2]
[400468145,1767599447483,-290.21851395,0.00011598,2]
[400468163,1767599880672,231.9919742,0.000301,120]
[400468165,1767600031908,200.0,0.00028694,120]
[400468168,1767600343125,464.04,0.00030137,120]
[400468196,1767600632191,-342.12924589,0.0001028,2]
[400468198,1767600632201,-5000.0,0.00010384,2]
[400468199,1767600632210,-1488.3780018,0.00010387,2]
[400468201,1767600632220,-300.0,0.00010765,2]
[400468203,1767600632229,-500.0,0.00010766,2]
[400468204,1767600632239,-423.24862634,0.00010766,2]
[400468206,1767600632248,-491.96660947,0.00010766,2]
[400468209,1767600632258,-500.0,0.00010766,2]
[400468211,1767600632267,-250.55103537,0.00010766,2]
[400468212,1767600632276,-9896.3608348,0.00010767,2]
[400468214,1767600632286,-1354.39994105,0.00011371,2]
[400468217,1767600632298,-6017.127826,0.00011599,2]
[400468219,1767600632308,-5931.1731576,0.0001164,2]
[400468221,1767600632318,-151.0,0.0001164,2]
[400468222,1767600632328,-384.22989403,0.00011829,2]
[400468224,1767600632337,-500.0,0.00011829,2]
[400468226,1767600632347,-500.0,0.00011829,2]
[400468228,1767600632356,-357.95554831,0.00011829,2]
[400468229,1767600632365,-500.0,0.00011829,2]
[400468231,1767600632375,-300.0,0.0001183,2]
[400468233,1767600632384,-300.0,0.0001183,2]
[400468235,1767600632393,-300.0,0.0001183,2]
[400468237,1767600632403,-300.0,0.0001183,2]
[400468239,1767600632412,-300.0,0.0001183,2]
[400468241,1767600632421,-300.0,0.0001183,2]
[400468242,1767600632431,-300.0,0.0001183,2]
[400468244,1767600632440,-300.0,0.0001183,2]
[400468246,1767600632449,-300.0,0.0001183,2]
[400468248,1767600632459,-300.0,0.0001183,2]
[400468250,1767600632468,-300.0,0.0001183,2]
[400468252,1767600632477,-300.0,0.0001183,2]
[400468254,1767600632488,-300.0,0.0001183,2]
[400468256,1767600632501,-300.0,0.0001183,2]
[400468258,1767600632510,-300.0,0.0001183,2]
[400468260,1767600632519,-151.0,0.00012007,2]
[400468262,1767600632530,-151.0,0.00012008,2]
[400468264,1767600632539,-600.0,0.00012066,2]
[400468265,1767600632548,-500.0,0.00012329,2]
[400468266,1767600632557,-500.0,0.00012329,2]
[400468267,1767600632566,-633.94735516,0.00012329,2]
[400468268,1767600632576,-500.0,0.00012329,2]
[400468269,1767600632584,-177.0,0.00012332,2]
[400468270,1767600632593,-720.0,0.00013272,2]
[400468271,1767600632602,-500.0,0.00013273,2]
[400468272,1767600632611,-614.35401849,0.00013273,2]
[400468273,1767600632620,-500.0,0.00013273,2]
[400468274,1767600632630,-9441.6095114,0.00013388,2]
[400468275,1767600632639,-171.806,0.00013564,2]
[400468276,1767600632651,-711.96761,0.00013699,2]
[400468277,1767600632660,-440.665378,0.00013699,2]
[400468278,1767600632669,-1174.07230062,0.00014175,2]
[400468279,1767600632678,-2198.14460125,0.00014175,2]
[400468280,1767600632687,-3222.21690188,0.00014175,2]
[400468281,1767600632696,-204.0,0.00014332,2]
[400468282,1767600632705,-168.0,0.00014575,2]
[400468283,1767600632714,-864.0,0.00014599,2]
[400468284,1767600632723,-168.0,0.00014712,2]
[400468285,1767600632733,-4246.28920251,0.00014789,2]
[400468286,1767600632743,-628.0,0.00014843,2]
[400468287,1767600632752,-1365.0,0.00014843,2]
[400468288,1767600632761,-168.0,0.00014903,2]
[400468289,1767600632770,-181.761339,0.00015068,2]
[400468290,1767600632779,-168.0,0.00015103,2]
[400468291,1767600632788,-168.0,0.00015181,2]
[400468293,1767600632797,-168.0,0.00015244,2]
[400468295,1767600632806,-168.0,0.00015251,2]
[400468297,1767600632815,-168.0,0.00015308,2]
[400468299,1767600632825,-168.0,0.00015354,2]
[400468301,1767600632834,-1041.66666667,0.00015403,2]
[400468303,1767600632844,-168.0,0.00015594,2]
[400468305,1767600632853,-3000.0,0.00016,2]
[400468307,1767600632863,-3000.0,0.0001601,2]
[400468309,1767600632873,-3000.0,0.0001602,2]
[400468311,1767600632882,-4525.986123,0.0001603,2]
[400468312,1767600632891,-1000.0,0.00016059,2]
[400468314,1767600632900,-5270.36150313,0.00016222,4]
[400468316,1767600632909,-231.0,0.00016332,2]
[400468318,1767600632919,-11.88912915,0.00016438,2]
[400468321,1767600632932,-488.11087085,0.00016438,2]
[400468323,1767600632941,-500.0,0.00016438,2]
[400468325,1767600632950,-500.0,0.00016438,2]
[400468327,1767600632959,-500.0,0.00016438,2]
[400468329,1767600632968,-500.0,0.00016438,2]
[400468331,1767600632977,-500.0,0.00016438,2]
[400468333,1767600632988,-500.0,0.00016438,2]
[400468335,1767600632997,-500.0,0.00016438,2]
[400468337,1767600633007,-500.0,0.00016438,2]
[400468339,1767600633017,-541.81187991,0.00016438,2]
[400468341,1767600633027,-500.0,0.00016438,2]
[400468343,1767600633036,-500.0,0.00016438,2]
[400468345,1767600633046,-500.0,0.00016438,2]
[400468347,1767600633055,-500.0,0.00016438,2]
[400468349,1767600633065,-500.0,0.00017056,7]
[400468351,1767600633074,-1469.55497978,0.00017444,2]
[400468352,1767600633083,-160.0,0.00017565,2]
[400468354,1767600633092,-147.50143225,0.00017656,7]
[400468357,1767600633104,-6146.93237151,0.00017656,7]
[400468359,1767600633114,-1000.0,0.00017665,2]
[400468361,1767600633123,-244.0,0.00017665,2]
[400468363,1767600633133,-428.0,0.00017711,2]
[400468365,1767600633142,-7968.46762832,0.000178,3]
[400468414,1767600638508,-516.36207518,0.0001173,2]
[400468490,1767600648634,-1183.04560614,0.00011613,2]
[400468491,1767600791339,200.0,0.0001,10]
[400468492,1767600791624,518.6,0.0001,10]
[400468493,1767600851304,200.0,0.0001,10]
[400468499,1767601115246,309.25236601,0.0001,10]
[400468519,1767601832372,-332.93679327,0.00010294,2]
[400468523,1767601832404,-2030.12616884,0.00010294,2]
[400468527,1767601832441,-2636.93703789,0.00010294,2]
[400468529,1767601832450,-2201.10004189,0.00010398,2]
[400468531,1767601832460,-268.96092582,0.00011629,2]
[400468534,1767601832470,-500.0,0.00011629,2]
[400468535,1767601832480,-300.56888382,0.00011629,2]
[400468537,1767601832490,-500.0,0.00011629,2]
[400468540,1767601832499,-26153.54333203,0.0001163,2]
[400468593,1767601838869,-1531.45639223,0.0001163,2]
[400468624,1767601935409,1000.0,0.0003,120]
[400468632,1767602919275,227.0,0.00030136,120]
[400468633,1767602926640,500.0,0.00030136,120]
[400468634,1767602926866,500.0,0.00030136,120]
[400468635,1767602927136,500.0,0.00030136,120]
[400468636,1767602927371,427.62346029,0.00030136,120]
[400468637,1767602945589,3544.55868626,0.0003,120]
[400468640,1767603025099,5000.0,0.0001,10]
[400468667,1767603033375,1334.64945413,0.0001,10]
[400468736,1767603096889,-5000.0,9.9e-05,2]
[400468737,1767603176583,-5000.0,9.801e-05,2]
[400468738,1767603193646,-5000.0,9.801e-05,2]
[400468739,1767603221280,-5000.0,9.9e-05,2]
[400468740,1767603237388,-5000.0,9.8e-05,2]
[400468741,1767603274198,-5000.0,9.8e-05,2]
[400468742,1767603274226,-2205.75997613,9.899e-05,2]
[400468743,1767603279818,5000.0,9.9e-05,2]
[400468748,1767603913177,3224.23080984,9.9e-05,2]
[400468847,1767604236486,-2000.0,9.9e-05,2]
[400468908,1767604240300,-1350.14105922,9.9e-05,2]
[400468921,1767604552742,163.36,7.64e-05,2]
[400468922,1767604553140,196.04,7.945e-05,2]
[400468923,1767604554051,228.71,8.251e-05,2]
[400468924,1767604554488,261.38,8.556e-05,2]
[400468925,1767604554904,294.06,8.862e-05,2]
[400468926,1767604555798,326.73,9.167e-05,2]
[400468927,1767604659651,-1065.20948665,9.606e-05,2]
[400468928,1767604659674,-681.58,9.703e-05,2]
[400468929,1767604659695,-559.0,9.9e-05,2]
[400468930,1767604659716,-300.0,9.995e-05,2]
[400468931,1767604659739,-500.0,9.996e-05,2]
[400468932,1767604659760,-306.72602798,9.996e-05,2]
[400468933,1767604659781,-500.0,9.996e-05,2]
[400468934,1767604659804,-416.92964555,9.996e-05,2]
[400468935,1767604659825,-500.0,9.996e-05,2]
[400468936,1767604659847,-185.0828466,9.996e-05,2]
[400468937,1767604659873,-500.0,9.996e-05,2]
[400468938,1767604659895,-500.0,9.996e-05,2]
[400468939,1767604659920,-500.0,9.996e-05,2]
[400468940,1767604659941,-537.39889619,9.996e-05,2]
[400468941,1767604659960,-500.0,9.996e-05,2]
[400468942,1767604659984,-500.0,9.996e-05,2]
[400468943,1767604660008,-500.0,9.996e-05,2]
[400468944,1767604660030,-500.0,9.996e-05,2]
[400468945,1767604660051,-308.8365997,9.996e-05,2]
[400468946,1767604660074,-500.0,9.996e-05,2]
[400468947,1767604660096,-500.0,9.996e-05,2]
[400468948,1767604660119,-500.0,9.996e-05,2]
[400468949,1767604660142,-500.0,9.996e-05,2]
[400468950,1767604660166,-529.65984777,9.996e-05,2]
[400468951,1767604660187,-553.8467949,9.996e-05,2]
[400468952,1767604660209,-500.0,9.996e-05,2]
[400468953,1767604660231,-500.0,9.996e-05,2]
[400468954,1767604660254,-200.0,9.996e-05,2]
[400468955,1767604660277,-300.0,9.997e-05,2]
[400468956,1767604660298,-300.0,9.997e-05,2]
[400468957,1767604660320,-300.0,9.997e-05,2]
[400468958,1767604660345,-461.0,9.997e-05,2]
[400468959,1767604660365,-10511.17,0.0001,2]
[400468960,1767604660389,-300.0,0.00010199,2]
[400468961,1767604660410,-220.38951023,0.00010251,2]
[400468962,1767604660430,-359.20011077,0.00011629,2]
[400468963,1767604660450,-177.0,0.00011851,2]
[400468964,1767604660472,-519.92822191,0.00012328,2]
[400468965,1767604660495,-292.99306463,0.00012328,2]
[400468966,1767604660517,-500.0,0.00012328,2]
[400468967,1767604660539,-500.0,0.00012329,2]
[400468968,1767604660560,-500.0,0.00012329,2]
[400468969,1767604660581,-500.0,0.00012329,2]
[400468970,1767604660603,-500.0,0.00012329,2]
[400468971,1767604660625,-500.0,0.00012329,2]
[400468972,1767604660646,-500.0,0.00012329,2]
[400468973,1767604660667,-500.0,0.00012329,2]
[400468974,1767604660688,-500.0,0.00012329,2]
[400468975,1767604660708,-500.0,0.00012329,2]
[400468976,1767604660728,-500.0,0.00012329,2]
[400468977,1767604660749,-500.0,0.00012329,2]
[400468978,1767604660770,-500.0,0.00012329,2]
[400468979,1767604660792,-500.0,0.00012329,2]
[400468980,1767604660814,-500.0,0.00012329,2]
[400468981,1767604660835,-500.0,0.00012329,2]
[400468982,1767604660862,-500.0,0.00012329,2]
[400468983,1767604660883,-500.0,0.00012329,2]
[400468984,1767604660904,-500.0,0.00012329,2]
[400468985,1767604660925,-500.0,0.00012329,2]
[400468986,1767604660948,-500.0,0.00012329,2]
[400468987,1767604660969,-500.0,0.00012329,2]
[400468988,1767604660991,-500.0,0.00012329,2]
[400468989,1767604661012,-500.0,0.00012329,2]
[400468990,1767604661034,-500.0,0.00012329,2]
[400468991,1767604661057,-114.04894712,0.00012329,2]
[400469008,1767605064212,169.29286,6.4e-05,2]
[400469043,1767605436752,-2000.0,0.00010884,2]
[400469044,1767605436762,-573.0,0.00010884,2]
[400469045,1767605436772,-200.0970388,0.00010994,2]
[400469046,1767605436781,-220.38951023,0.00012069,2]
[400469047,1767605436790,-1435.36364264,0.00012329,2]
[400469048,1767605436800,-836.1881127,0.00012657,2]
[400469049,1767605436809,-177.0,0.00012939,2]
[400469050,1767605436819,-1041.66666667,0.00013138,2]
[400469051,1767605436828,-360.27627431,0.00013219,2]
[400469052,1767605436838,-461.0,0.00013387,2]
[400469053,1767605436847,-300.0,0.00013388,2]
[400469054,1767605436857,-300.0,0.00013388,2]
[400469055,1767605436866,-300.0,0.00013388,2]
[400469056,1767605436876,-300.0,0.00013388,2]
[400469057,1767605436885,-247.09140294,0.00013389,2]
[400469058,1767605436895,-987.37724615,0.00013389,2]
[400469059,1767605436904,-482.83490686,0.00013389,2]
[400469060,1767605436916,-676.369229,0.00013699,2]
[400469061,1767605436925,-500.0,0.00013699,2]
[400469062,1767605436934,-178.0,0.00013851,2]
[400469063,1767605436943,-416.0,0.00013851,2]
[400469064,1767605436953,-292.99306463,0.00014092,2]
[400469065,1767605436964,-500.0,0.00014092,2]
[400469066,1767605436972,-519.92822191,0.00014092,2]
[400469067,1767605436981,-500.0,0.00014092,2]
[400469068,1767605436991,-185.0828466,0.00014092,2]
[400469069,1767605437000,-306.72602798,0.00014092,2]
[400469070,1767605437009,-416.92964555,0.00014092,2]
[400469071,1767605437018,-537.39889619,0.00014092,2]
[400469072,1767605437027,-200.0,0.00014092,2]
[400469073,1767605437036,-500.0,0.00014092,2]
[400469074,1767605437045,-500.0,0.00014092,2]
[400469075,1767605437053,-500.0,0.00014092,2]
[400469076,1767605437062,-500.0,0.00014092,2]
[400469077,1767605437071,-500.0,0.00014092,2]
[400469078,1767605437080,-500.0,0.00014092,2]
[400469079,1767605437089,-500.0,0.00014092,2]
[400469080,1767605437099,-500.0,0.00014092,2]
[400469081,1767605437115,-500.0,0.00014092,2]
[400469082,1767605437125,-500.0,0.00014092,2]
[400469083,1767605437136,-500.0,0.00014092,2]
[400469084,1767605437147,-500.0,0.00014092,2]
[400469085,1767605437156,-500.0,0.00014092,2]
[400469086,1767605437166,-500.0,0.00014092,2]
[400469087,1767605437176,-500.0,0.00014092,2]
[400469088,1767605437188,-500.0,0.00014092,2]
[400469089,1767605437198,-500.0,0.00014092,2]
[400469090,1767605437208,-500.0,0.00014092,2]
[400469091,1767605437217,-500.0,0.00014092,2]
[400469092,1767605437228,-500.0,0.00014092,2]
[400469093,1767605437237,-500.0,0.00014092,2]
[400469094,1767605437246,-500.0,0.00014092,2]
[400469095,1767605437255,-553.8467949,0.00014092,2]
[400469096,1767605437264,-500.0,0.00014092,2]
[400469097,1767605437273,-500.0,0.00014092,2]
[400469098,1767605437282,-500.0,0.00014092,2]
[400469099,1767605437291,-500.0,0.00014092,2]
[400469100,1767605437300,-479.65984777,0.00014092,2]
[400469101,1767605437310,-500.0,0.00014092,2]
[400469102,1767605437319,-500.0,0.00014092,2]
[400469103,1767605437328,-308.8365997,0.00014092,2]
[400469104,1767605437337,-500.0,0.00014092,2]
[400469105,1767605437347,-500.0,0.00014092,2]
[400469106,1767605437356,-500.0,0.00014092,2]
[400469107,1767605437366,-500.0,0.00014092,2]
[400469108,1767605437376,-500.0,0.00014092,2]
[400469109,1767605437386,-500.0,0.00014092,2]
[400469110,1767605437396,-199.78666705,0.00014092,2]
[400469111,1767605437405,-500.0,0.00014092,2]
[400469112,1767605437415,-500.0,0.00014092,2]
[400469113,1767605437425,-500.0,0.00014092,2]
[400469114,1767605437435,-500.0,0.00014092,2]
[400469115,1767605437444,-500.0,0.00014092,2]
[400469116,1767605437453,-500.0,0.00014092,2]
[400469117,1767605437463,-500.0,0.00014092,2]
[400469118,1767605437472,-500.0,0.00014092,2]
[400469119,1767605437482,-500.0,0.00014092,2]
[400469120,1767605437492,-500.0,0.00014092,2]
[400469121,1767605437502,-500.0,0.00014092,2]
[400469122,1767605437512,-632.62706737,0.00014094,2]
[400469123,1767605437522,-2527.9777612,0.00014094,2]
[400469124,1767605437531,-300.0,0.00014127,2]
[400469125,1767605437541,-220.332689,0.00014146,2]
[400469126,1767605437550,-1126.19502463,0.00014175,2]
[400469127,1767605437560,-1000.0,0.00014247,2]
[400469128,1767605437569,-600.0,0.00014716,2]
[400469129,1767605437579,-204.0,0.00014939,2]
[400469130,1767605437588,-545.401,0.00015,2]
[400469131,1767605437598,-215.0,0.00015,10]
[400469132,1767605437607,-171.80684497,0.00015,2]
[400469133,1767605437617,-181.761339,0.00015068,2]
[400469134,1767605437626,-200.0970388,0.00015899,2]
[400469135,1767605437635,-500.0,0.00016156,2]
[400469136,1767605437645,-720.0,0.00016187,2]
[400469137,1767605437655,-500.0,0.00016438,2]
[400469138,1767605437664,-500.0,0.00016438,2]
[400469139,1767605437674,-500.0,0.00016438,2]
[400469140,1767605437684,-582.491941,0.00016438,2]
[400469141,1767605437694,-458.0,0.00016438,2]
[400469142,1767605437704,-178.0,0.00016851,2]
[400469143,1767605437714,-231.0,0.00016939,2]
[400469144,1767605437725,-228.70879455,0.00017083,7]
[400469145,1767605437734,-4360.65229182,0.00017254,2]
[400469146,1767605437744,-34283.29821798,0.00017257,2]
[400469147,1767605437757,-31392.85960517,0.00017257,2]
[400469148,1767605437769,-502.7694488,0.00017257,2]
[400469149,1767605437780,-1123.02642622,0.00017257,2]
[400469155,1767605438020,-4905.58364292,0.00017257,2]
[400469156,1767605438032,-6498.24,0.00017257,2]
[400469157,1767605438074,-3610.35764539,0.00017257,2]
[400469342,1767605446282,-1466.7893271,0.00017257,2]
[400469343,1767605446293,-1002.17453697,0.00017257,2]
[400469345,1767605938796,3042.0,0.00030137,120]
[400469347,1767606288155,500.0,0.0001,10]
[400469364,1767606632027,-300.0,9.999e-05,2]
[400469365,1767606632037,-112.71247724,9.999e-05,2]
[400469366,1767606632049,-187.28752276,9.999e-05,2]
[400469367,1767606632058,-10511.17,0.0001,2]
[400469368,1767606632067,-177.0,0.00011999,2]
[400469369,1767606632078,-300.0,0.00012877,2]
[400469370,1767606632089,-283.76075499,0.00012877,2]
[400469371,1767606632099,-331.07331642,0.00012877,2]
[400469372,1767606632109,-500.0,0.00012877,2]
[400469373,1767606632118,-500.0,0.00012877,2]
[400469374,1767606632128,-469.9786667,0.00012877,2]
[400469376,1767606632137,-500.0,0.00012878,2]
[400469378,1767606632146,-638.27100738,0.00012878,2]
[400469380,1767606632155,-296.32034138,0.00012878,2]
[400469382,1767606632168,-1013.39038902,0.000129,2]
[400469383,1767606632177,-1041.66666667,0.00013268,2]
[400469384,1767606632186,-500.0,0.00013273,2]
[400469385,1767606632195,-500.0,0.00013273,2]
[400469386,1767606632205,-500.0,0.00013273,2]
[400469387,1767606632214,-642.550767,0.00013699,2]
[400469388,1767606632224,-178.0,0.00013777,2]
[400469389,1767606632233,-204.0,0.00014,2]
[400469390,1767606632242,-1148.64583246,0.00014175,2]
[400469391,1767606632251,-2147.29166493,0.00014175,2]
[400469392,1767606632260,-3145.9374974,0.00014761,2]
[400469393,1767606632269,-231.0,0.00016,2]
[400469394,1767606632278,-4144.58332987,0.00016143,4]
[400469395,1767606632288,-500.0,0.00016156,2]
[400469396,1767606632297,-1013.39038901,0.00016203,2]
[400469397,1767606632306,-231.38799344,0.00016438,2]
[400469398,1767606632315,-2030.296672,0.00016724,2]
[400469399,1767606632324,-178.0,0.00016777,2]
[400469400,1767606632333,-2105.41764886,0.00016779,2]
[400469401,1767606632344,-2183.31810187,0.00016834,2]
[400469402,1767606632353,-428.0,0.00016878,2]
[400469403,1767606632363,-2264.10087164,0.00016889,2]
[400469404,1767606632372,-2347.87260389,0.00016944,2]
[400469405,1767606632381,-2434.74389024,0.00016999,2]
[400469406,1767606632390,-2524.82941417,0.00017054,2]
[400469407,1767606632400,-328.19550104,0.00017064,2]
[400469408,1767606632409,-2618.2481025,0.00017109,2]
[400469409,1767606632418,-50818.56184396,0.00017155,2]
[400469410,1767606632430,-7762.03836392,0.00017155,2]
[400469411,1767606632440,-2715.12328229,0.00017164,2]
[400469412,1767606632451,-2815.58284374,0.00017219,2]
[400469413,1767606632460,-1236.449,0.00017257,2]
[400469414,1767606632470,-2919.75940895,0.00017274,2]
[400469415,1767606632479,-1815.69268417,0.00017329,2]
[400469416,1767606632488,-979.70331985,0.00017357,2]
[400469417,1767606632498,-407.66221481,0.00017524,7]
[400469418,1767606632509,-4735.56694753,0.00017524,7]
[400469419,1767606632519,-500.0,0.00017526,7]
[400469420,1767606632531,-600.0,0.00017601,2]
[400469421,1767606632541,-362.42643447,0.00017675,2]
[400469449,1767606638229,-364.57356553,0.00017675,2]
[400469450,1767606638239,-428.0,0.00017796,2]
[400469451,1767606638249,-6646.37798995,0.000178,3]
[400469452,1767606638261,-2530.59081494,0.000178,3]
[400469453,1767606638272,-3694.50348879,0.000178,3]
[400469454,1767606638282,-600.0,0.00017952,2]
[400469455,1767606638291,-851.78687886,0.0001799,2]
[400469456,1767606638303,-4246.77402943,0.0001799,2]
[400469457,1767606638315,-4840.4598424,0.0001799,2]
[400469458,1767606638327,-2322.27181308,0.0001799,2]
[400469503,1767606644501,-294.09991014,0.0001799,2]
[400469506,1767606646340,-11052.20739267,0.0001799,2]
[400469507,1767606646354,-35948.33842789,0.0001799,2]
[400469509,1767606695161,157.29,9.034e-05,2]
[400469514,1767606973325,158.94,8.582e-05,2]
[400469515,1767607312767,509.0,0.00030137,120]
[400469516,1767607553194,212.1676886,0.00024821,120]
[400469587,1767607840530,-500.0,0.00012778,2]
[400469588,1767607840540,-91.95824618,0.00012778,2]
[400469741,1767607846446,-204.83145898,0.00012778,2]
[400469743,1767607846456,-207.42423896,0.00012778,2]
[400469745,1767607846466,-163.33096297,0.00012778,2]
[400469747,1767607846479,-218.90644326,0.00012778,2]
[400469750,1767607846492,-281.09355674,0.00012778,2]
[400469752,1767607846502,-70.95723935,0.00012779,2]
[400469765,1767608174711,270.51071818,0.0003013,120]
[400469775,1767608496839,2000.0,0.00030137,120]
[400469776,1767608746465,10000.0,0.0001,30]
[400469777,1767608762928,3109.28,0.0001,30]
[400469804,1767609032412,-618.39661478,0.00012676,2]
[400469805,1767609032465,-1474.28135078,0.00012676,2]
[400469806,1767609032478,-1151.38683905,0.00012676,2]
[400469817,1767609038468,-311.65185859,0.00012676,2]
[400469818,1767609038481,-673.35,0.00012676,2]
[400469819,1767609038522,-2321.6507419,0.00012676,2]
[400469820,1767609038578,-5662.08556657,0.00012676,2]
[400469821,1767609038590,-1416.32791025,0.00012676,2]
[400469822,1767609038601,-5672.08212785,0.00012676,2]
[400469825,1767609040737,-2404.06790732,0.00012676,2]
[400469826,1767609040749,-2566.07621776,0.00012676,2]
[400469827,1767609040760,-6532.46671643,0.00012676,2]
[400469850,1767609046710,-68.29623466,0.00012675,2]
[400469851,1767609046721,-489.45655895,0.00012675,2]
[400469852,1767609046730,-1519.30252065,0.00012675,2]
[400469853,1767609046739,-1519.30252065,0.00012675,2]
[400469854,1767609046748,-1471.93839975,0.00012675,2]
[400469855,1767609188595,155.0,7e-05,2]
[400469896,1767610231752,-500.0,0.00012666,2]
[400469897,1767610231762,-500.0,0.00012666,2]
[400469899,1767610231772,-500.84451755,0.00012666,2]
[400469901,1767610231781,-305.40043948,0.00012666,2]
[400469903,1767610231791,-199.90580407,0.00012666,2]
[400469905,1767610231800,-500.0,0.00012666,2]
[400469907,1767610231810,-500.0,0.00012666,2]
[400469909,1767610231819,-390.42695553,0.00012666,2]